lending/lending_fUSD_20240507
["ID","MTS","AMOUNT","RATE_DAILY","PERIOD"]
[326532371,1715081447769,-655.0,0.00012987,2]
[326532372,1715081447779,-577.38504862,0.00012987,2]
[326532373,1715081447789,-205.88441293,0.00012988,2]
[326532374,1715081447798,-195.5456958,0.00012989,2]
[326532375,1715081447808,-2755.08166435,0.00012989,2]
[326532376,1715081447817,-155.23306073,0.00012989,2]
[326532377,1715081447827,-195.47609096,0.00012989,2]
[326532378,1715081447836,-676.07047739,0.00012989,2]
[326532379,1715081447846,-155.69297426,0.00012989,2]
[326532380,1715081447856,-413.30371254,0.00012989,2]
[326532381,1715081447867,-288.94378566,0.00012989,2]
[326532382,1715081447881,-616.51901983,0.00012989,2]
[326532383,1715081447892,-3018.25380717,0.00012989,2]
[326532384,1715081447902,-155.51216996,0.00012989,2]
[326532385,1715081447912,-226.67558916,0.00012989,2]
[326532386,1715081447922,-155.55226398,0.00012989,2]
[326532387,1715081447932,-306.92143567,0.00012989,2]
[326532388,1715081447942,-156.20157102,0.00012989,2]
[326532389,1715081447957,-5562.73011428,0.00012989,2]
[326532390,1715081447984,-155.91400614,0.00012989,2]
[326532391,1715081447995,-300.59367627,0.00012989,2]
[326532392,1715081448005,-126625.27766437,0.00012989,2]
[326532393,1715081448015,-318.59270315,0.00012989,2]
[326532394,1715081448025,-215.52248085,0.00012989,2]
[326532395,1715081448036,-646.50083061,0.00012989,2]
[326532396,1715081448046,-467.97960177,0.00012989,2]
[326532397,1715081448056,-194.36466099,0.00012989,2]
[326532398,1715081448066,-264.76711833,0.00012989,2]
[326532399,1715081448076,-439.00970497,0.00012989,2]
[326532400,1715081448090,-155.52702324,0.00012989,2]
[326532401,1715081448100,-539.93144414,0.0001299,2]
[326532402,1715081448110,-9382.9376845,0.00012991,2]
[326532403,1715081448120,-9292.6815623,0.00012991,2]
[326532404,1715081448131,-9202.4254401,0.00012991,2]
[326532405,1715081448141,-9112.169318,0.00012991,2]
[326532406,1715081448151,-9021.9131958,0.00012991,2]
[326532407,1715081448162,-1472.9334456,0.00012991,2]
[326532408,1715081448176,-1458.7650407,0.00012991,2]
[326532409,1715081448187,-1444.5966357,0.00012991,2]
[326532410,1715081448197,-1430.4282307,0.00012991,2]
[326532411,1715081448208,-1416.2598257,0.00012991,2]
[326532412,1715081448218,-635.18434652,0.00012996,2]
[326532413,1715081448228,-9473.1938067,0.00012996,2]
[326532414,1715081448237,-1487.1018506,0.00012996,2]
[326532415,1715081448248,-888.1014311,0.00012996,2]
[326532416,1715081448259,-172.3603955,0.00012996,2]
[326532417,1715081448269,-317.84580233,0.00012998,2]
[326532418,1715081448279,-197.8359891,0.00012999,3]
[326532419,1715081448289,-1386.76301344,0.00012999,2]
[326532420,1715081448299,-1732636.96097532,0.00013,2]
[326532421,1715081448309,-457187.19607884,0.00013,2]
[326532422,1715081448319,-500.0,0.00013,2]
[326532423,1715081448329,-500.0,0.00013,2]
[326532424,1715081448339,-500.0,0.00013,2]
[326532425,1715081448349,-500.0,0.00013,2]
[326532426,1715081448360,-500.0,0.00013,2]
[326532427,1715081448370,-500.0,0.00013,2]
[326532428,1715081448380,-500.0,0.00013,2]
[326532429,1715081448390,-500.0,0.00013,2]
[326532430,1715081448400,-500.0,0.00013,2]
[326532431,1715081448410,-500.0,0.00013,2]
[326532432,1715081448419,-500.0,0.00013,2]
[326532433,1715081448429,-500.0,0.00013,2]
[326532434,1715081448439,-500.0,0.00013,2]
[326532435,1715081448449,-500.0,0.00013,2]
[326532436,1715081448459,-500.0,0.00013,2]
[326532437,1715081448469,-500.0,0.00013,2]
[326532438,1715081448479,-500.0,0.00013,2]
[326532439,1715081448489,-500.0,0.00013,2]
[326532440,1715081448499,-500.0,0.00013,2]
[326532441,1715081448508,-500.0,0.00013,2]
[326532442,1715081448520,-500.0,0.00013,2]
[326532443,1715081448530,-500.0,0.00013,2]
[326532444,1715081448541,-500.0,0.00013,2]
[326532445,1715081448551,-500.0,0.00013,2]
[326532446,1715081448560,-500.0,0.00013,2]
[326532447,1715081448570,-500.0,0.00013,2]
[326532448,1715081448580,-500.0,0.00013,2]
[326532449,1715081448590,-500.0,0.00013,2]
[326532450,1715081448601,-500.0,0.00013,2]
[326532451,1715081448611,-500.0,0.00013,2]
[326532452,1715081448620,-500.0,0.00013,2]
[326532453,1715081448630,-500.0,0.00013,2]
[326532454,1715081448640,-500.0,0.00013,2]
[326532455,1715081448650,-500.0,0.00013,2]
[326532456,1715081448660,-500.0,0.00013,2]
[326532457,1715081448670,-500.0,0.00013,2]
[326532458,1715081448680,-500.0,0.00013,2]
[326532459,1715081448690,-500.0,0.00013,2]
[326532460,1715081448700,-500.0,0.00013,2]
[326532461,1715081448712,-500.0,0.00013,2]
[326532462,1715081448721,-500.0,0.00013,2]
[326532463,1715081448731,-500.0,0.00013,2]
[326532464,1715081448741,-500.0,0.00013,2]
[326532465,1715081448751,-500.0,0.00013,2]
[326532466,1715081448762,-500.0,0.00013,2]
[326532467,1715081448772,-500.0,0.00013,2]
[326532468,1715081448782,-500.0,0.00013,2]
[326532469,1715081448792,-500.0,0.00013,2]
[326532470,1715081448802,-500.0,0.00013,2]
[326532471,1715081448813,-500.0,0.00013,2]
[326532472,1715081448823,-500.0,0.00013,2]
[326532473,1715081448832,-500.0,0.00013,2]
[326532474,1715081448842,-500.0,0.00013,2]
[326532475,1715081448852,-500.0,0.00013,2]
[326532476,1715081448863,-500.0,0.00013,2]
[326532477,1715081448873,-500.0,0.00013,2]
[326532478,1715081448883,-500.0,0.00013,2]
[326532479,1715081448892,-500.0,0.00013,2]
[326532480,1715081448902,-500.0,0.00013,2]
[326532481,1715081448913,-650.0,0.00013,2]
[326532482,1715081448923,-97429.85031217,0.00013,2]
[326532483,1715081448938,-166095.25435203,0.00013,2]
[326532484,1715081448948,-311.0,0.00013,2]
[326532485,1715081448959,-189.08149527,0.00013,2]
[326532486,1715081448970,-150.0,0.00013,2]
[326532487,1715081448980,-211923.17274991,0.00013,2]
[326532488,1715081448990,-155.63243735,0.00013,2]
[326532489,1715081449000,-2000.0,0.00013,3]
[326532490,1715081449010,-2000.0,0.00013,3]
[326532491,1715081449019,-1419.0,0.00013,3]
[326532492,1715081449029,-135270.86340764,0.00013,2]
[326532493,1715081449041,-144004.59295771,0.00013,2]
[326532494,1715081449156,-504.26729214,0.00012987,2]
[326532495,1715081449170,-31675.53228078,0.00013,2]
[326532496,1715081449182,-32115.0,0.00013,2]
[326532565,1715082084572,-500.0,0.00012895,2]
[326532566,1715082084614,-500.0,0.00012896,2]
[326532567,1715082084701,-500.0,0.00012896,2]
[326532568,1715082084736,-176.18100081,0.000129,2]
[326532569,1715082084775,-189.66064792,0.000129,2]
[326532570,1715082084816,-2232.79435036,0.000129,2]
[326532571,1715082084948,-1394.49840091,0.00012968,2]
[326532577,1715082107680,-733.54506157,0.00012968,2]
[326532578,1715082110380,-556.45493843,0.00012998,2]
[326532584,1715082312334,-971.0,0.00012965,2]
[326532585,1715082312401,-410.8588166,0.00012998,2]
[326532586,1715082312447,-171.67087552,0.00012998,2]
[326532587,1715082312484,-155.27641133,0.00012998,2]
[326532588,1715082312561,-1270.56596455,0.00012998,2]
[326532589,1715082312641,-693.38150672,0.00012999,2]
[326532590,1715082312676,-3377.24642528,0.00013,2]
[326532651,1715082633712,-347.954734,0.000129,2]
[326532653,1715082633722,-700.0,0.000129,4]
[326532655,1715082633731,-223.285266,0.000129,2]
[326532657,1715082633746,-685.14132927,0.000129,2]
[326532659,1715082633758,-1357.75840473,0.000129,2]
[326532661,1715082633768,-1092.24159527,0.000129,2]
[326532662,1715082633781,-293.59802578,0.000129,2]
[326532663,1715082633795,-567.85543548,0.000129,2]
[326532664,1715082633805,-463.0,0.00012965,2]
[326532665,1715082633815,-1397.0,0.00012965,2]
[326532666,1715082633825,-1641.17257683,0.00012965,2]
[326532667,1715082633837,-659.82742317,0.00012965,2]
[326532668,1715082633848,-609.0,0.00012965,2]
[326532669,1715082633858,-870.93450246,0.00012965,2]
[326532670,1715082633870,-915.06549754,0.00012965,2]
[326532671,1715082633880,-808.0,0.00012965,2]
[326532672,1715082633890,-437.0,0.00012965,2]
[326532673,1715082633900,-1477.0,0.00012965,2]
[326532674,1715082633910,-2449.0,0.00012965,2]
[326532675,1715082633920,-421.0,0.00012965,2]
[326532676,1715082633934,-1139.0,0.00012965,2]
[326532677,1715082633944,-981.40809671,0.00012965,2]
[326532678,1715082633956,-575.78883201,0.00012965,2]
[326532679,1715082633968,-85.80307128,0.00012965,2]
[326532680,1715082633979,-215.0,0.00012965,2]
[326532681,1715082633991,-444.0,0.00012965,2]
[326532682,1715082634002,-3134.0,0.00012965,2]
[326532683,1715082634012,-268.56541611,0.00012965,2]
[326532684,1715082634025,-5626.43458389,0.00012965,2]
[326532685,1715082634035,-150.0,0.00012986,2]
[326532686,1715082634046,-2245.19728474,0.00012997,2]
[326532687,1715082634056,-346.69075336,0.00012999,2]
[326532688,1715082634066,-231.67483267,0.00013,2]
[326532689,1715082634078,-330.32516733,0.00013,2]
[326532690,1715082634088,-174.36904543,0.00013,2]
[326532691,1715082634099,-977.03499773,0.00013,2]
[326532692,1715082634112,-384.20256361,0.00013,2]
[326532693,1715082634124,-2084.58601039,0.00013,2]
[326532694,1715082634136,-722.23231057,0.00013,2]
[326532695,1715082634148,-17987.28086421,0.00013,2]
[326532696,1715082634160,-13797.04186635,0.00013,2]
[326532697,1715082634171,-492.84148313,0.00013,2]
[326532698,1715082634183,-590.10296194,0.00013,2]
[326532699,1715082634195,-10914.19417045,0.00013,2]
[326532700,1715082634206,-85900.42367055,0.00013,2]
[326532701,1715082634218,-6666.6,0.00013,2]
[326532702,1715082634230,-662.43919484,0.00013,2]
[326532703,1715082634244,-441.23700119,0.00013,2]
[326532704,1715082634256,-633.16573653,0.00013,2]
[326532705,1715082634267,-8373.95054556,0.00013,2]
[326532706,1715082634279,-648.56859254,0.00013,2]
[326532707,1715082634291,-9093.21,0.00013,2]
[326532729,1715082638460,-7777.74976624,0.00013,2]
[326532733,1715082638472,-703.20536157,0.00013,2]
[326532737,1715082638483,-141290.84368572,0.00013,2]
[326532741,1715082638496,-330.98596817,0.00013,2]
[326532744,1715082638510,-1802.08726276,0.00013,2]
[326532747,1715082638520,-4613.48141391,0.00013,2]
[326532750,1715082638531,-1029.27,0.00013,2]
[326532752,1715082638542,-741.3170906,0.00013,2]
[326532754,1715082638555,-1000.00663,0.00013,2]
[326532756,1715082638566,-995.94,0.00013,2]
[326532787,1715082639031,-505.0,0.00013,2]
[326532789,1715082639040,-894.11811231,0.00013,2]
[326532792,1715082639051,-3200.14401407,0.00013,2]
[326532797,1715082639062,-836.87762474,0.00013,2]
[326532798,1715082639074,-25817.40783778,0.00013,2]
[326532799,1715082639086,-853.09015929,0.00013,2]
[326532800,1715082639096,-316.34399999,0.00013,2]
[326532801,1715082639107,-415.10301408,0.00013,2]
[326532802,1715082639118,-19840.1776307,0.00013,2]
[326532803,1715082639129,-941.00123225,0.00013,2]
[326532804,1715082639141,-132464.19589799,0.00013,2]
[326532805,1715082639152,-7042.92,0.00013,2]
[326532806,1715082639163,-255.9999999,0.00013,2]
[326532807,1715082639174,-698.11209972,0.00013,2]
[326532808,1715082639186,-709.08266212,0.00013,2]
[326532809,1715082639198,-27466.22037121,0.00013,2]
[326532810,1715082639210,-901.37718854,0.00013,2]
[326532811,1715082639222,-461.61248665,0.00013,2]
[326532812,1715082639233,-31715.25899563,0.00013,2]
[326532813,1715082639248,-517.9058607,0.00013,2]
[326532814,1715082639259,-2418.80483945,0.00013,2]
[326532815,1715082639271,-500.6964493,0.00013,2]
[326532816,1715082639282,-310.24010705,0.00013,2]
[326532817,1715082639294,-622.21983407,0.00013,2]
[326532818,1715082639307,-429.6435528,0.00013,2]
[326532819,1715082639319,-50296.04134273,0.00013,2]
[326532820,1715082639331,-358.9537836,0.00013,2]
[326532821,1715082639342,-47018.75766705,0.00013,2]
[326532828,1715082641015,-1344.33106011,0.00013,2]
[326532830,1715082641026,-10329.3,0.00013,2]
[326532832,1715082641037,-1841.28543829,0.00013,2]
[326532834,1715082641049,-1780.90789548,0.00013,2]
[326532837,1715082641061,-28953.75641677,0.00013,2]
[326532845,1715082642283,-1853.6965244,0.00013,2]
[326532846,1715082642296,-1761.45133784,0.00013,2]
[326532847,1715082642308,-1600.96986562,0.00013,2]
[326532848,1715082642320,-4625.32824928,0.00013,2]
[326532849,1715082642331,-4100.4399,0.00013,2]
[326532850,1715082642343,-281.186742,0.00013,2]
[326532851,1715082642942,-189774.88029633,0.00013,2]
[326532853,1715082642952,-4283.49215341,0.00013,2]
[326532854,1715082642961,-165.24604743,0.00013,2]
[326532855,1715082642971,-91089.18929676,0.00013,2]
[326532856,1715082642980,-235.11,0.00013,2]
[326532857,1715082642990,-188.62918423,0.00013,2]
[326532858,1715082643001,-271.06054741,0.00013,2]
[326532859,1715082643010,-352.9127,0.00013,2]
[326532860,1715082643020,-352.9127,0.00013,2]
[326532861,1715082643029,-705.0,0.00013,2]
[326532862,1715082643038,-150.0,0.00013,2]
[326532863,1715082643048,-1918.83181965,0.00013,2]
[326532864,1715082643057,-150.0,0.00013,2]
[326532865,1715082643067,-1000.0,0.00013,2]
[326532866,1715082643076,-1002.8803,0.00013,2]
[326532867,1715082643085,-1002.8803,0.00013,2]
[326532868,1715082643094,-150.0,0.00013,2]
[326532870,1715082643104,-150.0,0.00013,2]
[326532872,1715082643113,-223.0,0.00013,2]
[326532874,1715082643124,-447.162,0.00013,2]
[326532877,1715082643141,-447.162,0.00013,2]
[326532879,1715082643152,-365.23719,0.00013,2]
[326532881,1715082643162,-1159.2525175,0.00013142,2]
[326532882,1715082643171,-344.75,0.00013151,2]
[326532883,1715082643181,-785.79,0.00013151,2]
[326532884,1715082643189,-501.09,0.00013151,2]
[326532885,1715082643198,-417.57,0.00013151,2]
[326532886,1715082643207,-347.98,0.00013151,2]
[326532887,1715082643216,-289.98,0.00013151,2]
[326532888,1715082643226,-150.0,0.00013375,2]
[326532889,1715082643235,-150.0,0.000135,2]
[326532890,1715082643248,-150.0,0.000135,2]
[326532891,1715082643258,-163.16,0.000135,2]
[326532892,1715082643268,-829.42,0.000135,2]
[326532893,1715082643277,-150.0,0.000135,2]
[326532894,1715082643287,-163.16,0.000136,2]
[326532895,1715082643299,-163.16,0.000136,2]
[326532896,1715082643308,-351.14,0.000136,2]
[326532897,1715082643321,-419.95,0.000136,2]
[326532898,1715082643331,-150.0,0.000136,2]
[326532899,1715082643341,-351.14,0.000136,2]
[326532900,1715082643351,-523.05,0.000136,2]
[326532901,1715082643361,-163.16,0.000136,2]
[326532902,1715082643371,-523.05,0.000136,2]
[326532903,1715082643380,-523.05,0.000136,2]
[326532904,1715082643390,-1000.0,0.000136,2]
[326532905,1715082643400,-155.86,0.000136,2]
[326532906,1715082643411,-1000.0,0.000136,2]
[326532907,1715082643420,-825.0,0.000136,2]
[326532908,1715082643430,-204.78630913,0.00013698,5]
[326532909,1715082643440,-200.0,0.00013699,2]
[326532910,1715082643449,-200.0,0.00013699,2]
[326532911,1715082643459,-1000.0,0.00013699,2]
[326532912,1715082643468,-1000.0,0.00013699,2]
[326532913,1715082643478,-1000.0,0.00013699,2]
[326532914,1715082643487,-1000.0,0.00013699,2]
[326532915,1715082643498,-202.041582,0.00013699,2]
[326532916,1715082643511,-200.0,0.00013699,2]
[326532917,1715082643521,-200.0,0.00013699,2]
[326532918,1715082643531,-200.0,0.00013699,2]
[326532919,1715082643540,-1000.0,0.00013699,2]
[326532920,1715082643551,-1000.0,0.00013699,2]
[326532921,1715082643561,-200.0,0.000137,2]
[326532922,1715082643571,-151.84,0.000137,2]
[326532923,1715082643580,-150.0,0.000137,2]
[326532924,1715082643592,-326.85,0.000137,2]
[326532925,1715082643601,-522.83,0.000137,2]
[326532926,1715082643611,-150.0,0.000137,2]
[326532927,1715082643620,-351.14,0.000137,2]
[326532928,1715082643629,-183.31,0.000137,2]
[326532929,1715082643638,-183.31,0.000137,2]
[326532930,1715082643647,-183.31,0.000137,2]
[326532931,1715082643657,-150.0,0.0001375,2]
[326532932,1715082643666,-150.0,0.00013797,2]
[326532933,1715082643675,-1769.27422804,0.00014,2]
[326532934,1715082643684,-150.0,0.00014125,2]
[326532935,1715082643693,-1953.6950565,0.00014329,2]
[326532936,1715082643703,-1567.35,0.00014384,2]
[326532937,1715082643712,-150.0,0.000145,2]
[326532938,1715082643721,-150.0,0.00014594,2]
[326532939,1715082643731,-150.0,0.00014594,2]
[326532940,1715082643740,-1318.81,0.00014752,2]
[326532941,1715082643751,-351.14,0.00014795,2]
[326532942,1715082643760,-1000.0,0.00014805,2]
[326532943,1715082643769,-238.34,0.00014826,2]
[326532944,1715082643778,-500.0,0.00014846,2]
[326532945,1715082643787,-2141.64,0.00014857,2]
[326532946,1715082643797,-152.94,0.0001486,2]
[326532947,1715082643807,-2751.0,0.00014869,2]
[326532948,1715082643818,-150.0,0.00014871,2]
[326532949,1715082643828,-150.0,0.00014875,2]
[326532950,1715082643838,-587.38,0.00014883,2]
[326532951,1715082643847,-201.9,0.00014928,2]
[326532952,1715082643856,-1186.6040038,0.00015,2]
[326532953,1715082643866,-493.0,0.00015,2]
[326532954,1715082643875,-2168.0,0.00015,2]
[326532955,1715082643886,-880.0,0.00015,2]
[326532956,1715082643896,-155.28,0.00015116,2]
[326532957,1715082643906,-2395.04416694,0.00015119,2]
[326532958,1715082643916,-17699.0,0.000152,3]
[326532959,1715082643929,-150.0,0.00015251,2]
[326532960,1715082643940,-654.01,0.00015342,2]
[326532961,1715082643951,-150.0,0.00015391,2]
[326532962,1715082643960,-150.0,0.00015397,2]
[326532963,1715082643969,-17699.0,0.000154,5]
[326532964,1715082643979,-150.0,0.00015626,2]
[326532965,1715082643990,-5064.0,0.000157,2]
[326532966,1715082644001,-201.9,0.00015706,2]
[326532967,1715082644010,-1953.6950565,0.00015757,2]
[326532968,1715082644019,-168.08,0.00015831,2]
[326532969,1715082644029,-1400.0,0.000159,5]
[326532970,1715082644038,-447.858,0.00015965,2]
[326532971,1715082644048,-2296.0,0.00015965,2]
[326532972,1715082644058,-1394.0,0.00015965,2]
[326532973,1715082644068,-3096.26110746,0.00016,2]
[326532974,1715082644078,-353.06464,0.00016,2]
[326532975,1715082644088,-150.0,0.00016001,2]
[326532976,1715082644099,-3328.33,0.00016164,2]
[326532977,1715082644109,-150.0,0.00016188,2]
[326532978,1715082644118,-150.0,0.00016188,2]
[326532979,1715082644128,-176.18100081,0.00016233,2]
[326532980,1715082644138,-154.65541319,0.00016373,2]
[326532981,1715082644147,-150.0,0.00016376,2]
[326532982,1715082644157,-2177.96,0.00016438,2]
[326532983,1715082644167,-189.65,0.00016451,2]
[326532984,1715082644176,-1228.92718188,0.000165,2]
[326532985,1715082644186,-177.18968157,0.00016532,2]
[326532986,1715082644196,-414.71,0.00016623,2]
[326532987,1715082644206,-1000.0,0.00016655,2]
[326532988,1715082644217,-238.34,0.0001668,2]
[326532989,1715082644226,-182.45,0.00016712,2]
[326532990,1715082644237,-154.88624468,0.00016718,2]
[326532991,1715082644248,-154.65541319,0.00016731,2]
[326532992,1715082644258,-150.0,0.00016751,2]
[326532993,1715082644267,-213.95017435,0.00016832,2]
[326532994,1715082644277,-156.49341477,0.00016881,2]
[326532995,1715082644287,-154.65541319,0.00016979,2]
[326532996,1715082644296,-150.0,0.00016985,2]
[326532997,1715082644306,-1758.04968918,0.00017,2]
[326532998,1715082644316,-17893.01713815,0.00017,2]
[326532999,1715082644326,-300.9,0.00017034,2]
[326533000,1715082644335,-300.0,0.00017034,2]
[326533001,1715082644345,-326.32,0.00017034,2]
[326533002,1715082644354,-419.95,0.00017034,2]
[326533003,1715082644364,-150.0,0.00017034,2]
[326533004,1715082644373,-163.02,0.00017034,2]
[326533005,1715082644382,-811.23,0.00017034,2]
[326533006,1715082644392,-157.52508704,0.00017073,2]
[326533007,1715082644403,-150.0,0.00017126,2]
[326533008,1715082644413,-168.08,0.00017137,2]
[326533009,1715082644422,-1953.6950565,0.00017186,2]
[326533010,1715082644717,-2509.5723299,0.00017212,2]
[326533011,1715082644740,-277.64914812,0.00017259,2]
[326533012,1715082644751,-221.469,0.00017375,2]
[326533013,1715082644762,-155.37502844,0.00017416,2]
[326533014,1715082644771,-221.469,0.00017453,2]
[326533015,1715082644781,-150.0,0.00017501,2]
[326533016,1715082644790,-156.55620612,0.00017546,2]
[326533017,1715082644800,-154.65541319,0.00017688,2]
[326533018,1715082644810,-150.0,0.00017782,2]
[326533019,1715082644821,-150.0,0.00017782,2]
[326533020,1715082644830,-300.0,0.000178,2]
[326533021,1715082644841,-100000.0,0.00017839,2]
[326533022,1715082644851,-150.0,0.00017856,2]
[326533023,1715082644861,-150.0,0.00017876,2]
[326533024,1715082644870,-4587.60578989,0.0001788,2]
[326533025,1715082644880,-4587.60578985,0.0001788,2]
[326533026,1715082644889,-4587.60578985,0.0001788,2]
[326533027,1715082644899,-4587.60578985,0.0001788,2]
[326533028,1715082644909,-4330.95781296,0.0001788,2]
[326533029,1715082644919,-4330.95781291,0.0001788,2]
[326533030,1715082644931,-4330.95781291,0.0001788,2]
[326533031,1715082644941,-4330.95781291,0.0001788,2]
[326533032,1715082644950,-150.0,0.0001789,2]
[326533033,1715082644960,-153.91731256,0.00017949,2]
[326533034,1715082644970,-365.2372,0.00018,2]
[326533035,1715082644979,-154.65541319,0.00018047,2]
[326533036,1715082644989,-154.88624468,0.00018052,2]
[326533037,1715082645002,-151.0,0.00018082,2]
[326533038,1715082645014,-160.12207759,0.00018095,2]
[326533039,1715082645025,-155.37502844,0.00018179,2]
[326533040,1715082645035,-4587.60578985,0.00018203,2]
[326533041,1715082645046,-4330.95781291,0.00018203,2]
[326533042,1715082645056,-150.0,0.00018251,2]
[326533043,1715082645066,-154.65541319,0.00018282,2]
[326533044,1715082645076,-170.00823866,0.00018287,2]
[326533045,1715082645087,-156.49341477,0.00018324,2]
[326533046,1715082645097,-10000.0,0.00018348,2]
[326533047,1715082645106,-600.0,0.00018355,2]
[326533048,1715082645116,-500.0,0.00018355,2]
[326533049,1715082645126,-500.0,0.00018355,2]
[326533050,1715082645136,-500.0,0.00018355,2]
[326533051,1715082645146,-100000.0,0.0001839,2]
[326533052,1715082645156,-157.217215,0.0001839,2]
[326533053,1715082645166,-200.405771,0.0001839,2]
[326533054,1715082645176,-200.405771,0.0001839,2]
[326533055,1715082645186,-152.208025,0.0001839,2]
[326533056,1715082645195,-2925.306465,0.0001839,2]
[326533057,1715082645205,-151.0,0.0001839,2]
[326533058,1715082645214,-151.0,0.0001839,2]
[326533059,1715082645223,-2925.306465,0.0001839,2]
[326533060,1715082645233,-151.0,0.0001839,2]
[326533061,1715082645244,-151.0,0.0001839,2]
[326533062,1715082645256,-151.0,0.0001839,2]
[326533063,1715082645266,-207.670899,0.0001839,2]
[326533064,1715082645276,-207.670899,0.0001839,2]
[326533065,1715082645285,-168.08,0.00018444,2]
[326533066,1715082645295,-500.0,0.000185,2]
[326533067,1715082645304,-154.65541319,0.00018503,2]
[326533068,1715082645314,-1000.0,0.00018506,2]
[326533069,1715082645323,-238.34,0.00018533,2]
[326533070,1715082645332,-395.11,0.00018541,2]
[326533071,1715082645342,-414.71,0.00018541,2]
[326533072,1715082645351,-912.31,0.00018541,2]
[326533073,1715082645360,-150.0,0.00018579,2]
[326533074,1715082645371,-1953.6950565,0.00018614,2]
[326533075,1715082645380,-157.52508704,0.00018637,2]
[326533076,1715082645390,-154.65541319,0.00018659,2]
[326533077,1715082645400,-154.88624468,0.00018663,2]
[326533078,1715082645411,-300.0,0.00018678,2]
[326533079,1715082645420,-163.16,0.00018678,2]
[326533080,1715082645430,-150.0,0.00018678,2]
[326533081,1715082645440,-154.65541319,0.0001873,2]
[326533082,1715082645450,-156.49341477,0.00018809,2]
[326533083,1715082645460,-156.49341477,0.00018819,2]
[326533084,1715082645469,-600.0,0.00018903,2]
[326533085,1715082645480,-500.0,0.00018903,2]
[326533086,1715082645489,-154.88624468,0.00018916,2]
[326533087,1715082645501,-154.88624468,0.00018924,2]
[326533088,1715082645515,-156.49341477,0.00018941,2]
[326533089,1715082645526,-150.0,0.00018952,2]
[326533090,1715082645536,-156.49341477,0.00018965,2]
[326533091,1715082645547,-714.76824595,0.00019,5]
[326533092,1715082645556,-1032.75628577,0.00019,2]
[326533093,1715082645566,-5000.0,0.00019,2]
[326533094,1715082645575,-28268.08420271,0.00019,2]
[326533095,1715082645586,-155.0,0.00019,2]
[326533096,1715082645596,-154.88624468,0.00019,2]
[326533097,1715082645605,-300.0,0.00019025,2]
[326533098,1715082645615,-213.95017435,0.00019115,2]
[326533099,1715082645624,-500.0,0.00019178,2]
[326533100,1715082645634,-500.0,0.00019178,2]
[326533101,1715082645643,-551.14828839,0.00019178,2]
[326533102,1715082645653,-500.0,0.00019178,2]
[326533103,1715082645662,-500.0,0.00019178,2]
[326533104,1715082645671,-500.0,0.00019178,2]
[326533105,1715082645682,-500.0,0.00019178,2]
[326533106,1715082645691,-390.28008295,0.00019178,2]
[326533107,1715082645700,-450.4921236,0.00019178,2]
[326533108,1715082645710,-500.0,0.00019178,2]
[326533109,1715082645719,-500.0,0.00019178,2]
[326533110,1715082645729,-500.0,0.00019178,2]
[326533111,1715082645739,-500.0,0.00019178,2]
[326533112,1715082645749,-500.0,0.00019178,2]
[326533113,1715082645758,-500.0,0.00019178,2]
[326533114,1715082645768,-271.47648569,0.00019178,2]
[326533115,1715082645777,-500.0,0.00019178,2]